[Event "*** Titled Tuesday Blitz"]
[Site "Chess.com"]
[Date "2018.05.01"]
[Round "1"]
[White "Babbelbox"]
[Black "Alexander_Moskalenko"]
[Result "0-1"]
[WhiteElo "2381"]
[BlackElo "2745"]
[TimeControl "180+2"]
[EndTime "13:08:56 PDT"]
[Termination "Alexander_Moskalenko won by resignation"]

1. d4 {[%clk 0:03:01.9]} 1... Nf6 {[%clk 0:03:00.5]} 2. c4 {[%clk 0:03:02.5]}
2... e6 {[%clk 0:03:02.4]} 3. Nc3 {[%clk 0:03:02.7]} 3... Bb4 {[%clk 0:03:03.7]}
4. Qc2 {[%clk 0:03:03.7]} 4... d5 {[%clk 0:03:03.7]} 5. cxd5 {[%clk 0:03:02.5]}
5... Qxd5 {[%clk 0:03:04.6]} 6. Nf3 {[%clk 0:03:01.4]} 6... Qf5 {[%clk
0:03:04.1]} 7. Qxf5 {[%clk 0:03:02.5]} 7... exf5 {[%clk 0:03:05.2]} 8. a3 {[%clk
0:03:04.4]} 8... Be7 {[%clk 0:03:04.3]} 9. Bg5 {[%clk 0:03:03.4]} 9... c6 {[%clk
0:03:05.1]} 10. e3 {[%clk 0:03:04.3]} 10... Be6 {[%clk 0:03:06]} 11. Bd3 {[%clk
0:03:02.9]} 11... a5 {[%clk 0:03:05.4]} 12. h3 {[%clk 0:02:51]} 12... Nbd7
{[%clk 0:03:05.8]} 13. Ke2 {[%clk 0:02:48.4]} 13... g6 {[%clk 0:03:04.4]} 14.
Nd2 {[%clk 0:02:23.7]} 14... Nb6 {[%clk 0:02:59.8]} 15. Bf4 {[%clk 0:02:07.4]}
15... Nfd5 {[%clk 0:02:55.5]} 16. Be5 {[%clk 0:02:05.7]} 16... f6 {[%clk
0:02:50.5]} 17. Bh2 {[%clk 0:02:05.2]} 17... Kf7 {[%clk 0:02:51.7]} 18. Rhc1
{[%clk 0:01:57.7]} 18... Rhe8 {[%clk 0:02:50.7]} 19. Nxd5 {[%clk 0:01:26.2]}
19... Bxd5 {[%clk 0:02:52.6]} 20. Kf1 {[%clk 0:01:22.6]} 20... a4 {[%clk
0:02:52.9]} 21. Bc7 {[%clk 0:01:20.3]} 21... Nd7 {[%clk 0:02:47.2]} 22. Bc4
{[%clk 0:01:21.1]} 22... Rec8 {[%clk 0:02:41.3]} 23. Bxd5+ {[%clk 0:01:17.4]}
23... cxd5 {[%clk 0:02:43.2]} 24. Bh2 {[%clk 0:01:13.9]} 24... Ke6 {[%clk
0:02:39.2]} 25. Ke2 {[%clk 0:01:15]} 25... Nb6 {[%clk 0:02:40]} 26. Kd3 {[%clk
0:01:13]} 26... Rc6 {[%clk 0:02:34.7]} 27. Rxc6+ {[%clk 0:01:05.1]} 27... bxc6
{[%clk 0:02:36.6]} 28. Rc1 {[%clk 0:01:06.3]} 28... Kd7 {[%clk 0:02:37.3]} 29.
Nb1 {[%clk 0:01:06.1]} 29... Nc4 {[%clk 0:02:37.1]} 30. Rc2 {[%clk 0:01:03]}
30... h5 {[%clk 0:02:34]} 31. Nd2 {[%clk 0:01:00.3]} 31... Nb6 {[%clk
0:02:28.8]} 32. f3 {[%clk 0:00:58.7]} 32... h4 {[%clk 0:02:24.4]} 33. Nb1 {[%clk
0:00:50.2]} 33... Ra7 {[%clk 0:02:24.9]} 34. Nc3 {[%clk 0:00:45.7]} 34... g5
{[%clk 0:02:23.7]} 35. e4 {[%clk 0:00:44.2]} 35... fxe4+ {[%clk 0:02:24.2]} 36.
fxe4 {[%clk 0:00:46.1]} 36... dxe4+ {[%clk 0:02:25.9]} 37. Kxe4 {[%clk
0:00:36.8]} 37... Ra5 {[%clk 0:02:26.9]} 38. Bg1 {[%clk 0:00:34.2]} 38... f5+
{[%clk 0:02:26.8]} 39. Kd3 {[%clk 0:00:35.1]} 39... Nd5 {[%clk 0:02:14.9]} 40.
Nxd5 {[%clk 0:00:31.3]} 40... cxd5 {[%clk 0:02:16.8]} 41. Be3 {[%clk 0:00:29.8]}
41... Rb5 {[%clk 0:02:17.6]} 42. Bd2 {[%clk 0:00:31.1]} 42... Rb3+ {[%clk
0:02:15]} 43. Bc3 {[%clk 0:00:32.1]} 43... Bd6 {[%clk 0:02:16.3]} 44. Rf2 {[%clk
0:00:30.7]} 44... Ke6 {[%clk 0:02:16.4]} 45. Re2+ {[%clk 0:00:32.1]} 45... Kf7
{[%clk 0:02:17.6]} 46. Re1 {[%clk 0:00:29.3]} 46... Bf4 {[%clk 0:02:15.1]} 47.
Re2 {[%clk 0:00:27.1]} 47... Bd6 {[%clk 0:02:10.9]} 48. Rf2 {[%clk 0:00:26]}
48... Kf6 {[%clk 0:02:10.6]} 49. Re2 {[%clk 0:00:27.3]} 49... Rb8 {[%clk
0:02:12.1]} 50. Re1 {[%clk 0:00:26.4]} 50... f4 {[%clk 0:02:12.9]} 51. Re2
{[%clk 0:00:22.1]} 51... Kf5 {[%clk 0:02:14.3]} 52. Re1 {[%clk 0:00:22.1]} 52...
Kf6 {[%clk 0:01:49.1]} 53. Re2 {[%clk 0:00:21.5]} 53... Rg8 {[%clk 0:01:48.8]}
54. Rf2 {[%clk 0:00:20.1]} 54... g4 {[%clk 0:01:48.9]} 55. hxg4 {[%clk
0:00:20.9]} 55... Rxg4 {[%clk 0:01:50.8]} 56. Bd2 {[%clk 0:00:22.2]} 56... Kf5
{[%clk 0:01:50.5]} 57. Bc1 {[%clk 0:00:19.9]} 57... Rg3+ {[%clk 0:01:51.3]} 58.
Ke2 {[%clk 0:00:13.3]} 58... Ke4 {[%clk 0:01:52.3]} 59. Bd2 {[%clk 0:00:14.4]}
59... Rxg2 {[%clk 0:01:40.6]} 60. Rxg2 {[%clk 0:00:13.8]} 60... f3+ {[%clk
0:01:42.1]} 61. Kf2 {[%clk 0:00:14.8]} 61... fxg2 {[%clk 0:01:44]} 62. Kxg2
{[%clk 0:00:16.7]} 62... Kxd4 {[%clk 0:01:45.5]} 63. Kh3 {[%clk 0:00:16.1]}
63... Be7 {[%clk 0:01:46.6]} 64. Kg4 {[%clk 0:00:15]} 64... Kd3 {[%clk 0:01:48]}
0-1

[Event "*** Titled Tuesday Blitz"]
[Site "Chess.com"]
[Date "2018.05.01"]
[Round "1"]
[White "kasparik_garik"]
[Black "AndrewDGreen"]
[Result "1-0"]
[WhiteElo "2503"]
[BlackElo "2151"]
[TimeControl "180+2"]
[EndTime "13:08:58 PDT"]
[Termination "kasparik_garik won by resignation"]

1. e4 {[%clk 0:03:01.2]} 1... Nf6 {[%clk 0:02:59.5]} 2. Nc3 {[%clk 0:03:01.2]}
2... d5 {[%clk 0:02:59]} 3. d3 {[%clk 0:03:02]} 3... dxe4 {[%clk 0:02:58.3]} 4.
Nxe4 {[%clk 0:03:02.9]} 4... Nxe4 {[%clk 0:02:58.7]} 5. dxe4 {[%clk 0:03:03.7]}
5... Qxd1+ {[%clk 0:03:00.2]} 6. Kxd1 {[%clk 0:03:04.6]} 6... e5 {[%clk
0:02:59.8]} 7. Nf3 {[%clk 0:03:05.2]} 7... f6 {[%clk 0:03:00.1]} 8. c3 {[%clk
0:03:03.5]} 8... Bc5 {[%clk 0:03:00.3]} 9. Ke1 {[%clk 0:03:03.3]} 9... Be6
{[%clk 0:03:00.4]} 10. Nd2 {[%clk 0:03:03.9]} 10... a5 {[%clk 0:02:55.2]} 11. a4
{[%clk 0:03:03.9]} 11... Nd7 {[%clk 0:02:52.4]} 12. Bc4 {[%clk 0:03:03.9]} 12...
Ke7 {[%clk 0:02:48.3]} 13. Ke2 {[%clk 0:03:04.1]} 13... Nb6 {[%clk 0:02:41.8]}
14. Bxe6 {[%clk 0:03:03.7]} 14... Kxe6 {[%clk 0:02:43.7]} 15. f3 {[%clk
0:03:02.9]} 15... Rhd8 {[%clk 0:02:43.1]} 16. Nb3 {[%clk 0:03:03.5]} 16... Be7
{[%clk 0:02:37.8]} 17. Be3 {[%clk 0:03:04]} 17... Nc4 {[%clk 0:02:37.8]} 18. Bc1
{[%clk 0:03:03.9]} 18... Rd7 {[%clk 0:02:33.1]} 19. Rd1 {[%clk 0:03:02.5]} 19...
Rad8 {[%clk 0:02:30.9]} 20. Rxd7 {[%clk 0:03:01.8]} 20... Rxd7 {[%clk
0:02:31.8]} 21. Nd2 {[%clk 0:03:02.4]} 21... Nxd2 {[%clk 0:02:24.8]} 22. Bxd2
{[%clk 0:03:02.5]} 22... Bc5 {[%clk 0:02:23.2]} 23. b4 {[%clk 0:02:57.7]} 23...
Bb6 {[%clk 0:02:21.9]} 24. Rb1 {[%clk 0:02:56.4]} 24... axb4 {[%clk 0:02:08.9]}
25. Rxb4 {[%clk 0:02:56.5]} 25... h5 {[%clk 0:02:00]} 26. Rb5 {[%clk 0:02:56.6]}
26... Kd6 {[%clk 0:01:28.8]} 27. Rd5+ {[%clk 0:02:36]} 27... Kc6 {[%clk
0:01:28.1]} 28. c4 {[%clk 0:02:36.5]} 28... Bd4 {[%clk 0:01:23.8]} 29. Kd3
{[%clk 0:02:37]} 29... g5 {[%clk 0:00:54.3]} 30. Bb4 {[%clk 0:02:35.9]} 30... g4
{[%clk 0:00:39]} 31. fxg4 {[%clk 0:02:34.5]} 31... hxg4 {[%clk 0:00:40.9]} 32.
Rxd7 {[%clk 0:02:34.8]} 32... Kxd7 {[%clk 0:00:42.8]} 33. h4 {[%clk 0:02:35.1]}
33... gxh3 {[%clk 0:00:39.6]} 34. gxh3 {[%clk 0:02:35.7]} 34... Ke6 {[%clk
0:00:38.7]} 35. Bc3 {[%clk 0:02:27.7]} 35... Bf2 {[%clk 0:00:38.1]} 36. Ke2
{[%clk 0:02:25.1]} 36... Bh4 {[%clk 0:00:36.7]} 37. Kf3 {[%clk 0:02:25.2]} 37...
f5 {[%clk 0:00:37]} 38. Ba5 {[%clk 0:02:25.2]} 38... c6 {[%clk 0:00:33.6]} 39.
Bb6 {[%clk 0:02:22.6]} 39... Be1 {[%clk 0:00:30.2]} 40. Bc7 {[%clk 0:02:20.7]}
40... Bh4 {[%clk 0:00:29.7]} 41. Bb6 {[%clk 0:02:19.2]} 41... Bg5 {[%clk
0:00:23.2]} 42. Be3 {[%clk 0:02:18.5]} 42... Bh4 {[%clk 0:00:23.2]} 43. Bd2
{[%clk 0:02:14.9]} 43... Kf6 {[%clk 0:00:19.9]} 44. Bc3 {[%clk 0:02:15]} 44...
Ke6 {[%clk 0:00:20.4]} 45. Bb2 {[%clk 0:02:15.3]} 45... Bg5 {[%clk 0:00:21.1]}
46. Kg3 {[%clk 0:02:12.9]} 46... fxe4 {[%clk 0:00:20.2]} 47. Kg4 {[%clk
0:02:13.6]} 47... Bd2 {[%clk 0:00:18.4]} 48. h4 {[%clk 0:02:13.5]} 48... e3
{[%clk 0:00:18.9]} 49. Kf3 {[%clk 0:02:14.3]} 49... Kf5 {[%clk 0:00:19]} 50. Ba3
{[%clk 0:02:13.1]} 50... e4+ {[%clk 0:00:17.6]} 51. Ke2 {[%clk 0:02:14]} 51...
Kg4 {[%clk 0:00:17.9]} 52. Be7 {[%clk 0:02:14.5]} 52... Bc1 {[%clk 0:00:18.8]}
53. Bg5 {[%clk 0:02:15.3]} 53... Bb2 {[%clk 0:00:15.8]} 54. Kxe3 {[%clk
0:02:15.5]} 54... Bc1+ {[%clk 0:00:13.3]} 55. Kxe4 {[%clk 0:02:15.5]} 55... Bxg5
{[%clk 0:00:14.9]} 56. hxg5 {[%clk 0:02:15.7]} 56... Kxg5 {[%clk 0:00:16.8]} 57.
Ke5 {[%clk 0:02:16.4]} 57... Kg6 {[%clk 0:00:08.9]} 58. c5 {[%clk 0:02:16.5]}
58... Kf7 {[%clk 0:00:09.8]} 59. Kd6 {[%clk 0:02:17.3]} 59... Ke8 {[%clk
0:00:11.2]} 60. Kc7 {[%clk 0:02:18.1]} 60... Ke7 {[%clk 0:00:12.3]} 61. a5
{[%clk 0:02:18.7]} 61... Ke6 {[%clk 0:00:12.9]} 62. Kxb7 {[%clk 0:02:19.4]}
62... Kd7 {[%clk 0:00:14.8]} 63. Kb6 {[%clk 0:02:20.8]} 63... Kc8 {[%clk
0:00:14.9]} 64. Kxc6 {[%clk 0:02:21.3]} 64... Kb8 {[%clk 0:00:16.8]} 65. Kb6
{[%clk 0:02:20.9]} 65... Ka8 {[%clk 0:00:18]} 66. c6 {[%clk 0:02:18.9]} 66...
Kb8 {[%clk 0:00:18.5]} 67. c7+ {[%clk 0:02:19.4]} 67... Kc8 {[%clk 0:00:19.6]}
68. a6 {[%clk 0:02:19]} 1-0

[Event "*** Titled Tuesday Blitz"]
[Site "Chess.com"]
[Date "2018.05.01"]
[Round "1"]
[White "SmoothAsAHedgehog"]
[Black "guillembaches"]
[Result "1-0"]
[WhiteElo "2544"]
[BlackElo "2233"]
[TimeControl "180+2"]
[EndTime "13:09:11 PDT"]
[Termination "SmoothAsAHedgehog won by checkmate"]

1. d4 {[%clk 0:03:01.5]} 1... Nf6 {[%clk 0:02:58.2]} 2. c4 {[%clk 0:03:02.1]}
2... e6 {[%clk 0:02:58.9]} 3. Nc3 {[%clk 0:03:02.6]} 3... Bb4 {[%clk 0:02:59.8]}
4. Qc2 {[%clk 0:03:03.7]} 4... O-O {[%clk 0:03:00]} 5. a3 {[%clk 0:03:03.7]}
5... Bxc3+ {[%clk 0:03:01.2]} 6. Qxc3 {[%clk 0:03:05.6]} 6... b6 {[%clk
0:03:02.3]} 7. Bg5 {[%clk 0:03:00.5]} 7... Bb7 {[%clk 0:03:03]} 8. f3 {[%clk
0:03:01.6]} 8... h6 {[%clk 0:02:59.4]} 9. Bh4 {[%clk 0:02:58.5]} 9... d6 {[%clk
0:03:00.1]} 10. e3 {[%clk 0:02:51.7]} 10... Nbd7 {[%clk 0:02:58.5]} 11. Bd3
{[%clk 0:02:51.7]} 11... Rc8 {[%clk 0:02:56]} 12. Ne2 {[%clk 0:02:49.8]} 12...
c5 {[%clk 0:02:56.7]} 13. O-O {[%clk 0:01:23.2]} 13... d5 {[%clk 0:02:55.7]} 14.
cxd5 {[%clk 0:01:18.3]} 14... exd5 {[%clk 0:02:50.1]} 15. Rac1 {[%clk
0:01:12.4]} 15... Re8 {[%clk 0:02:43]} 16. Bf2 {[%clk 0:01:10.8]} 16... Nf8
{[%clk 0:02:35.1]} 17. Qd2 {[%clk 0:01:09.9]} 17... Ne6 {[%clk 0:02:33.7]} 18.
Bb5 {[%clk 0:01:10.6]} 18... Bc6 {[%clk 0:02:32.1]} 19. Bd3 {[%clk 0:01:10.5]}
19... Bb7 {[%clk 0:02:31.9]} 20. Bb1 {[%clk 0:01:10.8]} 20... Qe7 {[%clk
0:02:24.3]} 21. Rfe1 {[%clk 0:01:09.3]} 21... Ng5 {[%clk 0:02:14.7]} 22. Nf4
{[%clk 0:01:04.8]} 22... Ne6 {[%clk 0:02:12.4]} 23. Nd3 {[%clk 0:01:04.1]} 23...
c4 {[%clk 0:02:08.9]} 24. Ne5 {[%clk 0:01:02.2]} 24... Nd7 {[%clk 0:02:09.4]}
25. Qc2 {[%clk 0:00:52.5]} 25... g6 {[%clk 0:02:02.8]} 26. f4 {[%clk 0:00:50.8]}
26... Nxe5 {[%clk 0:01:56.7]} 27. fxe5 {[%clk 0:00:51.6]} 27... b5 {[%clk
0:01:36.3]} 28. Bg3 {[%clk 0:00:50]} 28... a5 {[%clk 0:01:35.2]} 29. Qf2 {[%clk
0:00:49.2]} 29... b4 {[%clk 0:01:31.8]} 30. axb4 {[%clk 0:00:48.9]} 30... axb4
{[%clk 0:01:33.7]} 31. Bh4 {[%clk 0:00:49.7]} 31... Ng5 {[%clk 0:01:30.3]} 32.
Rf1 {[%clk 0:00:42.5]} 32... Rf8 {[%clk 0:01:26.5]} 33. Bg3 {[%clk 0:00:31.9]}
33... Rce8 {[%clk 0:01:16.3]} 34. h4 {[%clk 0:00:32.3]} 34... Ne4 {[%clk
0:01:11.1]} 35. Bxe4 {[%clk 0:00:32.2]} 35... dxe4 {[%clk 0:01:13]} 36. Qe2
{[%clk 0:00:24.9]} 36... Bd5 {[%clk 0:01:09.7]} 37. Rf6 {[%clk 0:00:24.8]} 37...
Rc8 {[%clk 0:01:05.3]} 38. h5 {[%clk 0:00:25.8]} 38... Kg7 {[%clk 0:00:54.7]}
39. Qg4 {[%clk 0:00:20.5]} 39... g5 {[%clk 0:00:48.7]} 40. Bh4 {[%clk
0:00:21.4]} 40... Rg8 {[%clk 0:00:48.6]} 41. Rcf1 {[%clk 0:00:21.1]} 41... Be6
{[%clk 0:00:47.2]} 42. Qxe4 {[%clk 0:00:21.1]} 42... gxh4 {[%clk 0:00:47.4]} 43.
Qf4 {[%clk 0:00:20.7]} 43... Kf8 {[%clk 0:00:47.1]} 44. e4 {[%clk 0:00:21.5]}
44... Ke8 {[%clk 0:00:39.4]} 45. d5 {[%clk 0:00:22.5]} 45... Bg4 {[%clk
0:00:40.2]} 46. Rxf7 {[%clk 0:00:23.3]} 46... Qc5+ {[%clk 0:00:40.2]} 47. Kh2
{[%clk 0:00:20.7]} 47... h3 {[%clk 0:00:40.4]} 48. Rh7 {[%clk 0:00:11.1]} 48...
Rf8 {[%clk 0:00:36.5]} 49. Rf7 {[%clk 0:00:11.7]} 49... hxg2 {[%clk 0:00:32.3]}
50. Rxf8+ {[%clk 0:00:11.7]} 50... Qxf8 {[%clk 0:00:34.2]} 51. Qxf8+ {[%clk
0:00:13]} 51... Kd7 {[%clk 0:00:33.4]} 52. Qd6+ {[%clk 0:00:14.9]} 52... Ke8
{[%clk 0:00:34.5]} 53. Rf8# {[%clk 0:00:16.4]} 1-0

[Event "*** Titled Tuesday Blitz"]
[Site "Chess.com"]
[Date "2018.05.01"]
[Round "1"]
[White "MikaelyanArman"]
[Black "PowerThinking2650"]
[Result "1-0"]
[WhiteElo "2625"]
[BlackElo "2298"]
[TimeControl "180+2"]
[EndTime "13:09:12 PDT"]
[Termination "MikaelyanArman won by resignation"]

1. Nf3 {[%clk 0:03:01.3]} 1... Nf6 {[%clk 0:02:59.6]} 2. c4 {[%clk 0:03:00.6]}
2... g6 {[%clk 0:02:59.6]} 3. g3 {[%clk 0:03:00.8]} 3... Bg7 {[%clk 0:03:00.5]}
4. Bg2 {[%clk 0:03:02.3]} 4... O-O {[%clk 0:03:01.5]} 5. O-O {[%clk 0:03:03.8]}
5... d6 {[%clk 0:03:02.7]} 6. d4 {[%clk 0:03:04.3]} 6... Nbd7 {[%clk 0:03:02.8]}
7. Nc3 {[%clk 0:03:04.8]} 7... e5 {[%clk 0:03:03.4]} 8. b3 {[%clk 0:03:06]} 8...
exd4 {[%clk 0:03:03]} 9. Nxd4 {[%clk 0:03:06.4]} 9... Re8 {[%clk 0:03:03.8]} 10.
h3 {[%clk 0:03:02.2]} 10... Nc5 {[%clk 0:03:03.3]} 11. Bb2 {[%clk 0:03:00.2]}
11... Bd7 {[%clk 0:02:56]} 12. Qc2 {[%clk 0:02:54.1]} 12... Qc8 {[%clk
0:02:52.4]} 13. Kh2 {[%clk 0:02:39]} 13... Re5 {[%clk 0:02:21.7]} 14. b4 {[%clk
0:02:18.8]} 14... Rh5 {[%clk 0:02:06.8]} 15. h4 {[%clk 0:01:52.2]} 15... Ng4+
{[%clk 0:02:01.7]} 16. Kg1 {[%clk 0:01:53]} 16... Bxd4 {[%clk 0:02:01.5]} 17.
bxc5 {[%clk 0:01:54.1]} 17... dxc5 {[%clk 0:01:50]} 18. e3 {[%clk 0:01:53.1]}
18... Bg7 {[%clk 0:01:23.6]} 19. Nd5 {[%clk 0:01:53.6]} 19... Qd8 {[%clk
0:01:21.8]} 20. Bxg7 {[%clk 0:01:52.3]} 20... Kxg7 {[%clk 0:01:18.8]} 21. Qb2+
{[%clk 0:01:52.9]} 21... Kg8 {[%clk 0:01:09.8]} 22. Qxb7 {[%clk 0:01:45.6]}
22... c6 {[%clk 0:01:07.4]} 23. Ne7+ {[%clk 0:01:42]} 23... Qxe7 {[%clk
0:00:59.9]} 24. Qxa8+ {[%clk 0:01:42]} 24... Kg7 {[%clk 0:01:01.2]} 25. Qb8
{[%clk 0:01:34.2]} 25... Re5 {[%clk 0:00:40.9]} 26. Rad1 {[%clk 0:01:30.6]}
26... g5 {[%clk 0:00:34.8]} 27. Qxa7 {[%clk 0:01:24.3]} 27... Nf6 {[%clk
0:00:32.4]} 28. hxg5 {[%clk 0:01:15.2]} 28... Rxg5 {[%clk 0:00:32.2]} 29. Qc7
{[%clk 0:01:15.2]} 29... h5 {[%clk 0:00:27.1]} 30. Qd6 {[%clk 0:01:09.8]} 30...
Qe8 {[%clk 0:00:22.9]} 31. Rb1 {[%clk 0:01:03]} 31... h4 {[%clk 0:00:22]} 32.
Rb8 {[%clk 0:01:02.8]} 32... Bc8 {[%clk 0:00:21.8]} 33. Qxc6 {[%clk 0:01:00.8]}
33... Qxc6 {[%clk 0:00:16.1]} 34. Bxc6 {[%clk 0:01:00.9]} 34... Be6 {[%clk
0:00:17.9]} 35. Bd5 {[%clk 0:00:47.6]} 35... Nxd5 {[%clk 0:00:13]} 36. cxd5
{[%clk 0:00:47.6]} 36... Bxd5 {[%clk 0:00:14]} 37. Rc1 {[%clk 0:00:21.2]} 37...
hxg3 {[%clk 0:00:14.3]} 38. Rxc5 {[%clk 0:00:21.3]} 38... gxf2+ {[%clk 0:00:12]}
39. Kxf2 {[%clk 0:00:22]} 39... Rg2+ {[%clk 0:00:13]} 40. Kf1 {[%clk 0:00:22.1]}
40... Rd2 {[%clk 0:00:12.2]} 41. a4 {[%clk 0:00:18.9]} 41... Be6 {[%clk
0:00:10.1]} 42. a5 {[%clk 0:00:19.3]} 42... Ra2 {[%clk 0:00:10.8]} 43. Rb4
{[%clk 0:00:19.8]} 43... Kf6 {[%clk 0:00:10.7]} 44. Rf4+ {[%clk 0:00:20.6]}
44... Ke7 {[%clk 0:00:11.6]} 45. Rd4 {[%clk 0:00:21.7]} 45... f5 {[%clk
0:00:10.5]} 46. Ke1 {[%clk 0:00:22.7]} 46... Bd7 {[%clk 0:00:10.6]} 47. Re5+
{[%clk 0:00:23]} 47... Be6 {[%clk 0:00:11.3]} 48. Rd2 {[%clk 0:00:23.9]} 48...
Kf6 {[%clk 0:00:11.5]} 49. Rxe6+ {[%clk 0:00:23.7]} 49... Kxe6 {[%clk
0:00:12.1]} 50. Rxa2 {[%clk 0:00:25.5]} 1-0

[Event "*** Titled Tuesday Blitz"]
[Site "Chess.com"]
[Date "2018.05.01"]
[Round "1"]
[White "AnkitGajwa"]
[Black "Abund"]
[Result "0-1"]
[WhiteElo "2136"]
[BlackElo "2490"]
[TimeControl "180+2"]
[EndTime "13:09:16 PDT"]
[Termination "Abund won on time"]

1. e4 {[%clk 0:02:58.2]} 1... c6 {[%clk 0:03:00.6]} 2. d4 {[%clk 0:02:58]} 2...
d5 {[%clk 0:03:01.2]} 3. Nd2 {[%clk 0:02:57.7]} 3... dxe4 {[%clk 0:03:01.8]} 4.
Nxe4 {[%clk 0:02:57.5]} 4... Bf5 {[%clk 0:02:58]} 5. Ng3 {[%clk 0:02:57.6]} 5...
Bg6 {[%clk 0:02:58.9]} 6. h4 {[%clk 0:02:57.2]} 6... h6 {[%clk 0:02:59.9]} 7.
Nf3 {[%clk 0:02:57.5]} 7... e6 {[%clk 0:02:59.7]} 8. Ne5 {[%clk 0:02:56.3]} 8...
Bh7 {[%clk 0:02:59.8]} 9. Bd3 {[%clk 0:02:54]} 9... Bxd3 {[%clk 0:03:00.1]} 10.
Qxd3 {[%clk 0:02:52.6]} 10... Nd7 {[%clk 0:03:00.9]} 11. f4 {[%clk 0:02:52.7]}
11... Be7 {[%clk 0:02:29.7]} 12. Bd2 {[%clk 0:02:50.6]} 12... Nxe5 {[%clk
0:02:26.4]} 13. fxe5 {[%clk 0:02:49.3]} 13... Bxh4 {[%clk 0:02:27.4]} 14. O-O-O
{[%clk 0:02:48.5]} 14... Bxg3 {[%clk 0:02:28.3]} 15. Qxg3 {[%clk 0:02:48.2]}
15... Ne7 {[%clk 0:02:30.2]} 16. Qxg7 {[%clk 0:02:14]} 16... Rg8 {[%clk
0:02:30.2]} 17. Qf6 {[%clk 0:02:11.9]} 17... Nf5 {[%clk 0:02:17.7]} 18. Bxh6
{[%clk 0:01:34.9]} 18... Qxf6 {[%clk 0:01:30.5]} 19. exf6 {[%clk 0:01:34.7]}
19... O-O-O {[%clk 0:01:31.6]} 20. c3 {[%clk 0:01:16.6]} 20... Rxg2 {[%clk
0:01:30.2]} 21. Bf4 {[%clk 0:01:14.8]} 21... Rf2 {[%clk 0:00:50.5]} 22. Be5
{[%clk 0:01:11.5]} 22... Ne3 {[%clk 0:00:47.4]} 23. Rd2 {[%clk 0:00:32.3]} 23...
Rf5 {[%clk 0:00:28]} 24. b3 {[%clk 0:00:19.5]} 24... Ng4 {[%clk 0:00:29]} 25.
Re2 {[%clk 0:00:16.8]} 25... Nxf6 {[%clk 0:00:29.7]} 26. Reh2 {[%clk 0:00:10.5]}
26... Ng4 {[%clk 0:00:28]} 27. Rh8 {[%clk 0:00:10.2]} 27... Nxe5 {[%clk
0:00:27.7]} 28. Rxd8+ {[%clk 0:00:08.8]} 28... Kxd8 {[%clk 0:00:28.5]} 29. Rh8+
{[%clk 0:00:09.1]} 29... Kc7 {[%clk 0:00:28.3]} 30. dxe5 {[%clk 0:00:09.1]}
30... Rxe5 {[%clk 0:00:30.2]} 31. Rf8 {[%clk 0:00:09.2]} 31... Rf5 {[%clk
0:00:32.1]} 32. Kc2 {[%clk 0:00:09.2]} 32... Rf2+ {[%clk 0:00:32.2]} 33. Kd3
{[%clk 0:00:09.6]} 33... a6 {[%clk 0:00:33.3]} 34. a4 {[%clk 0:00:08.7]} 34...
a5 {[%clk 0:00:34.2]} 35. Re8 {[%clk 0:00:07.2]} 35... Rf3+ {[%clk 0:00:31.8]}
36. Kc4 {[%clk 0:00:04.5]} 36... Kb6 {[%clk 0:00:32.3]} 37. Re7 {[%clk
0:00:02.3]} 37... Rf5 {[%clk 0:00:33.1]} 38. b4 {[%clk 0:00:02.1]} 38... e5
{[%clk 0:00:31.4]} 39. bxa5+ {[%clk 0:00:02.4]} 39... Ka6 {[%clk 0:00:32]} 40.
Kb4 {[%clk 0:00:02.2]} 40... f6 {[%clk 0:00:25.1]} 41. Re8 {[%clk 0:00:01.9]}
41... Ka7 {[%clk 0:00:25.6]} 0-1